bitfinex-derivatives/quotes_SOLF0:USTF0_20251211
["timestamp","ask_amount","ask_price","bid_price","bid_amount"]
[1765432061739,0.05634986,130.99,130.96,0.0562339]
[1765432061926,6.92674986,130.99,130.96,0.0562339]
[1765432062441,3.31,130.98,130.96,0.0562339]
[1765432069842,3.31,130.98,130.96,3.2862339]
[1765432071647,0.05634986,130.99,130.96,0.0562339]
[1765432071648,3.36634986,130.99,130.96,0.0562339]
[1765432071940,3.36634986,130.99,130.96,3.2862339]
[1765432072244,3.36634986,130.99,130.96,0.0562339]
[1765432076541,3.36634986,130.99,130.92,6.8737]
[1765432076542,3.31,130.97,130.92,6.8737]
[1765432076751,3.31,130.93,130.89,3.23]
[1765432077542,0.04827143,130.92,130.9,3.27850043]
[1765432077942,0.04827143,130.92,130.9,10.15290043]
[1765432079445,0.04827143,130.92,130.91,3.23]
[1765432080852,87.84,130.99,130.91,3.23]
[1765432080853,3.31,130.96,130.93,10.1031]
[1765432081851,3.36534367,130.96,130.93,10.1527646]
[1765432083052,0.05534367,130.96,130.95,3.23]
[1765432083554,0.05534367,130.96,130.94,6.8727]
[1765432083555,3.36534367,130.96,130.94,10.1027]
[1765432085758,3.36534367,130.96,130.95,3.2]
[1765432085949,3.36534367,130.96,130.94,10.0727]
[1765432086448,0.05534367,130.96,130.95,3.2]
[1765432091665,3.18,130.98,130.96,3.2]
[1765432092863,3.23392916,130.98,130.96,3.25613194]
[1765432098670,3.23392916,130.98,130.96,10.12773194]
[1765432098870,0.05392916,130.98,130.97,3.32]
[1765432099056,3.39392916,130.98,130.97,3.32]
[1765432099255,3.39392916,130.98,130.96,6.92773194]
[1765432099565,3.39392916,130.98,130.96,10.24773194]
[1765432101563,0.05392916,130.98,130.97,3.32]
[1765432104770,3.39392916,130.98,130.96,71.82773194]
[1765432105071,3.39392916,130.98,130.96,75.14773194]
[1765432107371,0.05392916,130.98,130.97,3.32]
[1765432108069,3.39392916,130.98,130.96,71.82773194]
[1765432108271,3.39392916,130.98,130.96,68.27613194]
[1765432113674,0.05392916,130.98,130.97,3.32]
[1765432113978,3.39392916,130.98,130.97,3.32]
[1765432114779,5.69145752,130.98,130.96,64.95613194]
[1765432115379,3.25,130.97,130.96,64.95613194]
[1765432115772,3.25,130.97,130.96,68.10613194]
[1765432116183,5.60145752,130.98,130.96,68.10613194]
[1765432116369,3.25,130.97,130.96,64.95613194]
[1765432116681,3.25,130.97,130.96,68.10613194]
[1765432117480,3.25,130.97,130.96,3.20613194]
[1765432118279,0.05392916,130.98,130.96,3.20613194]
[1765432119882,0.05392916,130.98,130.97,3.15]
[1765432125593,3.25,131.02,130.99,3.15]
[1765432125997,10.1182,131.03,130.99,3.15]
[1765432126200,3.25,131.03,130.99,3.15]
[1765432126693,3.30434678,131.02,131.0,3.20385673]
[1765432126889,0.05434678,131.02,131.0,3.20385673]
[1765432128887,10.1168,131.06,131.0,3.20385673]
[1765432130094,0.05491283,131.04,131.0,3.20385673]
[1765432130896,0.05491283,131.04,131.0,10.07335673]
[1765432131200,3.30491283,131.04,131.01,3.15]
[1765432131397,0.05491283,131.04,131.01,3.15]
[1765432133800,0.05491283,131.04,131.01,10.0188]
[1765432134004,0.05491283,131.04,131.02,3.15]
[1765432134902,0.05491283,131.04,131.03,3.15]
[1765432136797,32.1158,131.08,131.03,3.15]
[1765432137004,3.25,131.07,131.04,3.15]
[1765432137896,3.29934259,131.07,131.04,3.19904121]
[1765432138701,0.04934259,131.07,131.04,3.19904121]
[1765432139000,3.29934259,131.07,131.04,3.19904121]
[1765432145012,3.13,131.05,131.0,3.24]
[1765432146003,3.18484437,131.04,131.01,3.29695812]
[1765432147005,0.05484437,131.04,131.01,3.29695812]
[1765432147910,0.05484437,131.04,131.01,10.16595812]
[1765432148213,0.05484437,131.04,131.02,3.24]
[1765432149104,0.05484437,131.04,131.01,6.92595812]
[1765432149105,3.18484437,131.04,131.01,0.05695812]
[1765432149711,3.18484437,131.04,131.01,3.29695812]
[1765432150722,0.05484437,131.04,131.01,3.29695812]
[1765432151013,3.18484437,131.04,131.01,3.29695812]
[1765432151512,0.05484437,131.04,131.01,3.29695812]
[1765432159023,0.05484437,131.04,131.01,10.16595812]
[1765432159628,0.05484437,131.04,131.02,3.21]
[1765432164023,0.05484437,131.04,131.03,3.21]
[1765432181634,3.20484437,131.04,131.02,3.38]
[1765432182434,3.20484437,131.04,131.01,3.43695812]
[1765432186049,3.15,131.03,131.01,3.43695812]
[1765432204450,0.05484437,131.04,131.03,3.35]
[1765432212855,10.2847,131.1,131.05,3.28]
[1765432213058,3.42,131.09,131.05,3.28]
[1765432213847,0.05104011,131.08,131.07,3.28]
[1765432214756,3.47104011,131.08,131.07,3.28]
[1765432215157,0.05104011,131.08,131.07,3.28]
[1765432219265,10.2837,131.12,131.07,3.28]
[1765432219266,3.42,131.12,131.07,3.28]
[1765432219468,3.42,131.12,131.09,3.28]
[1765432220063,3.42,131.13,131.09,3.28]
[1765432220365,3.47673479,131.12,131.1,3.33849865]
[1765432228075,0.05673479,131.12,131.1,3.33849865]
[1765432228264,3.47673479,131.12,131.1,3.33849865]
[1765432229170,0.05673479,131.12,131.1,3.33849865]
[1765432229372,0.05673479,131.12,131.11,3.28]
[1765432232172,3.47673479,131.12,131.1,0.05849865]
[1765432232372,3.42,131.1,131.07,3.28]
[1765432232779,2.29584499,131.09,131.07,3.28]
[1765432232978,3.42,131.09,131.07,3.28]
[1765432233579,3.4773407,131.09,131.07,3.32831797]
[1765432234179,3.4773407,131.09,131.07,0.04831797]
[1765432235080,3.14,131.07,131.02,3.43]
[1765432235279,2.29584499,131.05,131.02,3.43]
[1765432235482,5.43584499,131.05,131.02,3.43]
[1765432236086,5.48967343,131.05,131.02,3.48536514]
[1765432236786,0.05382844,131.05,131.02,3.48536514]
[1765432236977,0.05382844,131.05,131.04,3.43]
[1765432237171,3.14,131.1,131.05,3.43]
[1765432237172,10.0046,131.1,131.05,3.43]
[1765432237982,10.0046,131.1,131.06,3.43]
[1765432238183,0.05275362,131.09,131.08,3.43]
[1765432240191,0.05275362,131.09,131.07,3.47899287]
[1765432242385,3.19275362,131.09,131.07,0.04899287]
[1765432242786,3.19275362,131.09,131.07,3.47899287]
[1765432244690,10.05785362,131.09,131.07,3.47899287]
[1765432245490,12.35369861,131.09,131.07,3.47899287]
[1765432245691,3.14,131.08,131.07,0.04899287]
[1765432247747,3.14,131.06,131.02,3.43]
[1765432247993,5.43584499,131.05,131.02,3.43]
[1765432248589,5.484111,131.05,131.02,3.48757822]
[1765432250698,0.04826601,131.05,131.02,3.48757822]
[1765432254003,0.04826601,131.05,131.03,3.43]
[1765432255601,0.04826601,131.05,131.03,10.2979]
[1765432255807,0.04826601,131.05,131.04,3.43]
[1765432260514,3.11,131.09,131.06,3.22]
[1765432261304,3.16345224,131.09,131.06,3.27060692]
[1765432265615,0.05345224,131.09,131.06,3.27060692]
[1765432265806,0.05345224,131.09,131.07,3.44]
[1765432266006,90.42607591,131.13,131.07,3.44]
[1765432266007,22.0,131.13,131.07,3.44]
[1765432266209,25.12,131.13,131.07,3.44]
[1765432266408,3.12,131.12,131.08,3.44]
[1765432267122,3.12,131.1,131.09,0.05706519]
[1765432272421,0.05637382,131.11,131.1,3.44]
[1765432294041,6.80244973,131.11,131.05,3.43]
[1765432294245,3.16,131.1,131.05,3.43]
[1765432294440,3.16,131.1,131.06,3.32]
[1765432294938,3.16,131.1,131.05,64.82]
[1765432295146,3.28,131.08,131.06,0.05501424]
[1765432295746,3.28,131.07,131.03,3.32]
[1765432296745,3.33514065,131.06,131.04,0.05415511]
[1765432302948,3.28,131.02,130.97,3.32]
[1765432303950,3.3339959,131.01,130.99,3.32]
[1765432304151,3.3339959,131.01,130.99,0.05219715]
[1765432304552,0.0539959,131.01,130.99,3.37219715]
[1765432312756,0.0539959,131.01,130.99,5.6673025]
[1765432312958,0.0539959,131.01,131.0,3.32]
[1765432314259,2.29510535,131.06,131.01,3.32]
[1765432314260,3.28,131.06,131.01,3.32]
[1765432314554,3.28,131.05,131.01,3.32]
[1765432315160,0.0545068,131.04,131.02,3.37479492]
[1765432317965,3.3345068,131.04,131.02,3.37479492]
[1765432322561,0.0545068,131.04,131.02,3.37479492]
[1765432325971,0.0545068,131.04,131.03,3.18]
[1765432332180,3.13,131.09,131.04,3.36]
[1765432332379,3.13,131.09,131.05,3.36]
[1765432333373,3.13,131.05,131.02,3.36]
[1765432333571,3.18831922,131.05,131.02,3.41886794]
[1765432337278,0.05831922,131.05,131.02,3.41886794]
[1765432338681,3.18831922,131.05,131.02,3.41886794]
[1765432359696,0.05831922,131.05,131.02,10.28726794]
[1765432360002,0.05831922,131.05,131.03,3.41]
[1765432360898,0.05831922,131.05,131.04,3.41]
[1765432363303,0.05831922,131.05,131.04,5.70510535]
[1765432363602,0.05831922,131.05,131.04,3.41]
[1765432363798,0.05831922,131.05,131.04,68.27]
[1765432370212,3.26,131.09,131.05,3.41]
[1765432371214,0.0577217,131.08,131.06,0.05658141]
[1765432371415,3.3177217,131.08,131.07,3.41]
[1765432372011,0.0577217,131.08,131.07,3.41]
[1765432373114,3.3177217,131.08,131.07,3.41]
[1765432373511,0.0577217,131.08,131.07,3.41]
[1765432380312,3.26,131.13,131.08,3.41]
[1765432380517,3.26,131.14,131.1,3.41]
[1765432381320,3.26,131.12,131.11,0.04964851]
[1765432381917,3.26,131.12,131.11,3.45964851]
[1765432382420,3.31616172,131.13,131.11,3.45964851]
[1765432400326,3.31616172,131.13,131.12,3.19]
[1765432400327,0.05616172,131.13,131.12,3.19]
[1765432402331,3.43,131.18,131.13,3.19]
[1765432402719,3.43,131.19,131.15,3.19]
[1765432403431,0.05479565,131.18,131.17,3.19]
[1765432407835,3.43,131.21,131.17,3.19]
[1765432408736,0.03957283,131.2,131.17,3.19]
[1765432409933,0.03957283,131.2,131.17,10.0505]
[1765432410135,0.03957283,131.2,131.18,3.19]
[1765432413631,3.46957283,131.2,131.16,0.05872911]
[1765432413830,3.46957283,131.2,131.16,3.24872911]
[1765432414439,3.46957283,131.2,131.17,3.32]
[1765432417441,3.46957283,131.2,131.16,0.05872911]
[1765432417945,3.3,131.18,131.16,0.05872911]
[1765432424136,3.3,131.18,131.1,6.8641]
[1765432424341,3.3,131.16,131.1,3.32]
[1765432424543,3.3,131.14,131.1,3.32]
[1765432424740,3.3,131.12,131.08,3.32]
[1765432425453,3.58296791,131.13,131.09,0.05507482]
[1765432425454,3.3,131.1,131.09,0.05507482]
[1765432425753,3.34931598,131.11,131.09,3.37507482]
[1765432425955,0.04931598,131.11,131.09,3.37507482]
[1765432426353,3.34931598,131.11,131.09,3.37507482]
[1765432427256,3.34931598,131.11,131.09,0.05507482]
[1765432430064,0.04931598,131.11,131.09,3.37507482]
[1765432430261,3.34931598,131.11,131.09,3.37507482]
[1765432439060,3.34931598,131.11,131.09,0.05507482]
[1765432440971,5.64176563,131.11,131.09,0.05507482]
[1765432441169,3.3,131.1,131.09,0.05507482]
[1765432443161,0.04931598,131.11,131.09,3.37507482]
[1765432443365,3.34931598,131.11,131.09,3.37507482]
[1765432443773,3.34931598,131.11,131.09,0.05507482]
[1765432455485,0.04931598,131.11,131.09,3.43507482]
[1765432455672,3.46931598,131.11,131.09,3.43507482]
[1765432463991,3.46931598,131.11,131.1,3.38]
[1765432463992,0.04931598,131.11,131.1,3.38]
[1765432492320,10.1803,131.18,131.12,3.14]
[1765432492520,3.32,131.17,131.14,3.14]
[1765432493418,3.36811958,131.17,131.14,3.19333817]
[1765432495321,0.04811958,131.17,131.14,3.19333817]
[1765432496527,3.36811958,131.17,131.14,3.19333817]
[1765432496927,0.04811958,131.17,131.14,3.19333817]
[1765432497631,3.36811958,131.17,131.14,3.19333817]
[1765432499435,0.04811958,131.17,131.14,3.19333817]
[1765432500930,3.36811958,131.17,131.14,0.05333817]
[1765432501333,3.62671217,131.17,131.14,0.05333817]
[1765432501536,3.32,131.16,131.14,0.05333817]
[1765432502123,3.32,131.15,131.1,3.14]
[1765432502333,3.32,131.14,131.1,3.14]
[1765432503237,3.32,131.12,131.11,0.05569135]
[1765432506240,3.32,131.12,131.08,3.2]
[1765432506544,3.32,131.12,131.06,10.0662]
[1765432506746,3.32,131.12,131.07,3.2]
[1765432507440,3.24843924,131.11,131.09,3.2]
[1765432513049,0.05843924,131.11,131.09,3.2]
[1765432520254,3.29843924,131.11,131.09,3.2]
[1765432522054,0.05843924,131.11,131.09,3.2]
[1765432525059,0.05843924,131.11,131.1,3.2]
[1765432528062,3.29843924,131.11,131.1,3.2]
[1765432528456,0.05843924,131.11,131.1,3.2]
[1765432529464,3.29843924,131.11,131.1,3.2]
[1765432529663,3.29843924,131.11,131.08,68.06995515]
[1765432530164,3.29843924,131.11,131.09,3.2]
[1765432531468,0.05843924,131.11,131.09,3.2]
[1765432547087,0.05843924,131.11,131.09,10.0647]
[1765432547385,0.05843924,131.11,131.1,3.32]
[1765432558601,3.31843924,131.11,131.08,3.36995515]
[1765432559804,3.26,131.1,131.08,3.36995515]
[1765432561607,3.26,131.1,131.08,0.04995515]
[1765432561797,3.26,131.1,131.08,3.36995515]
[1765432564116,5.61056004,131.11,131.08,3.36995515]
[1765432570318,3.31843924,131.11,131.08,3.36995515]
[1765432570516,3.31843924,131.11,131.09,3.38]
[1765432571506,0.05843924,131.11,131.09,3.38]
[1765432572018,0.05843924,131.11,131.09,10.2448]
[1765432572222,0.05843924,131.11,131.1,3.18]
[1765432572411,3.39843924,131.11,131.1,3.18]
[1765432573618,3.39843924,131.11,131.08,3.22995515]
[1765432574615,3.39843924,131.11,131.09,3.18]
[1765432575815,0.05843924,131.11,131.09,3.18]
[1765432576818,3.39843924,131.11,131.09,3.18]
[1765432579320,0.05843924,131.11,131.09,5.4721208]
[1765432579526,0.05843924,131.11,131.1,3.18]
[1765432589136,3.34,131.16,131.11,6.8635]
[1765432589325,3.34,131.16,131.13,3.18]
[1765432590330,3.38923331,131.16,131.13,3.23577458]
[1765432595234,3.24,131.15,131.13,3.23577458]
[1765432596637,3.24,131.14,131.13,0.05577458]
[1765432616853,3.24,131.14,131.09,3.41]
[1765432617161,3.24,131.13,131.09,3.41]
[1765432618054,0.05206082,131.12,131.11,3.41]
[1765432662083,0.05206082,131.12,131.11,68.23]
[1765432664996,3.45206082,131.12,131.1,3.43683355]
[1765432674205,0.05206082,131.12,131.1,3.43683355]
[1765432675909,0.05206082,131.12,131.11,3.38]
[1765432683519,0.05206082,131.12,131.11,5.67148638]
[1765432684419,0.05206082,131.12,131.11,3.38]
[1765432687224,3.46206082,131.12,131.11,3.38]
[1765432688026,0.05206082,131.12,131.11,3.38]
[1765432718858,3.18206082,131.12,131.11,3.38]
[1765432719359,0.05206082,131.12,131.11,3.38]
[1765432719559,3.18206082,131.12,131.11,3.38]
[1765432721064,0.05206082,131.12,131.11,3.38]
[1765432747674,3.39206082,131.12,131.1,0.05683355]
[1765432747979,3.39206082,131.12,131.1,3.44683355]
[1765432748178,0.05206082,131.12,131.1,3.44683355]
[1765432753981,3.39206082,131.12,131.1,3.44683355]
[1765432755191,3.34,131.11,131.1,0.05683355]
[1765432756891,3.34,131.11,131.1,3.44683355]
[1765432757589,6.91546082,131.12,131.1,3.20683355]
[1765432757790,10.25546082,131.12,131.1,3.20683355]
[1765432759990,3.34,131.11,131.1,3.20683355]
[1765432768908,3.39206082,131.12,131.1,3.20683355]
[1765432769105,0.05206082,131.12,131.1,3.20683355]
[1765432772610,0.05206082,131.12,131.1,10.07113355]
[1765432772814,0.05206082,131.12,131.11,3.15]
[1765432776213,0.05206082,131.12,131.1,6.92113355]
[1765432776214,3.47206082,131.12,131.1,3.45683355]
[1765432777215,3.47206082,131.12,131.1,0.05683355]
[1765432782024,0.05206082,131.12,131.1,3.45683355]
[1765432782520,3.47206082,131.12,131.1,3.45683355]
[1765432782916,0.05206082,131.12,131.1,3.45683355]
[1765432788432,0.05206082,131.12,131.1,10.32113355]
[1765432788931,0.05206082,131.12,131.11,3.4]
[1765432802745,3.47206082,131.12,131.11,3.4]
[1765432802949,0.05206082,131.12,131.11,3.4]
[1765432804752,3.23,131.11,131.1,0.05683355]
[1765432805450,3.23,131.11,131.1,3.39683355]
[1765432805838,3.23,131.11,131.1,0.05683355]
[1765432806147,3.23,131.11,131.1,3.39683355]
[1765432806349,3.23,131.11,131.1,0.05683355]
[1765432807042,8.83246596,131.11,131.1,0.05683355]
[1765432807453,3.23,131.09,131.06,3.34]
[1765432807647,5.52154356,131.09,131.06,3.34]
[1765432808449,5.57763476,131.09,131.06,3.39284512]
[1765432808642,3.23,131.08,131.06,3.39284512]
[1765432808846,5.52154356,131.07,131.06,0.05284512]
[1765432827971,0.0560912,131.09,131.06,3.40284512]
[1765432828463,3.2860912,131.09,131.07,3.35]
[1765432828769,3.2860912,131.09,131.06,3.40284512]
[1765432829072,3.23,131.08,131.06,3.40284512]
[1765432829269,3.23,131.08,131.06,10.26914512]
[1765432829474,5.57763476,131.09,131.07,3.35]
[1765432832377,3.23,131.08,131.07,3.35]
[1765432832972,5.57763476,131.09,131.07,3.35]
[1765432835675,0.0560912,131.09,131.07,3.35]
[1765432838176,3.3660912,131.09,131.07,3.35]
[1765432838472,0.0560912,131.09,131.07,3.35]
[1765432841877,3.3660912,131.09,131.07,3.35]
[1765432842178,3.31,131.08,131.06,0.05284512]
[1765432851275,9.21263476,131.09,131.06,3.36284512]
[1765432851276,3.3660912,131.09,131.06,3.36284512]
[1765432852377,3.31,131.08,131.06,0.05284512]
[1765432853386,12.46714356,131.08,131.06,0.05284512]
[1765432853583,3.31,131.07,131.06,0.05284512]
[1765432855680,9.03105257,131.07,131.06,0.05284512]
[1765432859692,3.31,131.07,131.06,0.05284512]
[1765432861799,3.31,131.04,130.98,3.31]
[1765432862096,3.31,131.02,130.95,3.31]
[1765432862700,0.05803776,131.0,130.98,3.31]
[1765432863687,3.36803776,131.0,130.98,3.31]
[1765432865691,3.36803776,131.0,130.97,10.21199681]
[1765432866089,3.36803776,131.0,130.97,3.34089681]
[1765432866785,0.05803776,131.0,130.97,3.34089681]
[1765432868193,3.29,131.05,130.98,113.74818081]
[1765432868497,3.29,131.07,131.01,3.29]
[1765432868884,6.8667,131.06,131.01,3.29]
[1765432869086,3.29,131.06,131.01,3.29]
[1765432869298,0.05685685,131.05,131.03,3.29]
[1765432870296,3.29,131.03,130.98,3.29]
[1765432870488,3.29,131.02,130.98,3.29]
[1765432870688,3.29,131.05,130.98,3.29]
[1765432871090,3.29,131.04,131.0,3.29]
[1765432871295,0.05243142,131.02,131.0,3.29]
[1765432875400,3.29,131.01,130.99,6.92094]
[1765432875598,3.29,131.01,130.99,0.05094]
[1765432875997,0.05243142,131.02,130.99,0.05094]
[1765432875998,3.26243142,131.02,130.99,3.30094]
[1765432876700,3.26243142,131.02,130.99,0.05094]
[1765432877500,10.13123142,131.02,130.99,0.05094]
[1765432877706,3.21,131.01,130.99,0.05094]
[1765432878700,3.21,130.99,130.94,3.25]
[1765432878901,3.21,130.99,130.92,3.25]
[1765432879603,0.05540511,130.97,130.94,3.29985806]
[1765432880803,0.05540511,130.97,130.96,3.25]
[1765432881002,32.0783,131.03,130.96,3.25]
[1765432881202,3.21,131.02,130.96,3.25]
[1765432881994,0.05476825,131.0,130.98,3.29821837]
[1765432882203,3.26476825,131.0,130.98,0.04821837]
[1765432892211,3.21,130.98,130.93,3.25]
[1765432893215,3.26496726,130.97,130.94,0.05811089]
[1765432898515,3.26496726,130.97,130.94,3.32811089]
[1765432898911,3.26496726,130.97,130.94,0.05811089]
[1765432899120,3.32,130.95,130.88,3.27]
[1765432899316,3.32,130.92,130.88,3.27]
[1765432899611,194.6767,130.96,130.88,3.27]
[1765432899612,6.90518081,130.95,130.88,3.27]
[1765432900312,0.05334335,130.93,130.91,3.27]
[1765432900515,0.0554194,130.93,130.91,3.3192443]
[1765432901515,3.3754194,130.93,130.91,3.3192443]
[1765432902012,0.0554194,130.93,130.91,3.3192443]
[1765432903412,3.3754194,130.93,130.91,0.0492443]
[1765432908120,3.3754194,130.93,130.91,3.3192443]
[1765432908418,0.0554194,130.93,130.91,3.3192443]
[1765432908620,3.3754194,130.93,130.91,0.0492443]
[1765432909013,6.96060021,130.93,130.91,0.0492443]
[1765432909215,3.32,130.92,130.91,0.0492443]
[1765432914619,3.32,130.89,130.86,3.27]
[1765432914820,3.32,130.89,130.84,3.27]
[1765432915523,3.32,130.91,130.86,3.27]
[1765432915725,3.37006397,130.9,130.87,3.31989705]
[1765432918831,5.67041763,130.9,130.87,3.31989705]
[1765432919029,3.32,130.89,130.87,3.31989705]
[1765432920340,3.32,130.89,130.87,0.04989705]
[1765432920541,5.62035366,130.88,130.87,0.04989705]
[1765432923336,3.32,130.88,130.87,0.04989705]
[1765432926846,10.1555,130.89,130.87,3.43989705]
[1765432927139,3.28,130.89,130.87,0.04989705]
[1765432933553,0.05006397,130.9,130.87,3.43989705]
[1765432933738,0.05006397,130.9,130.88,3.39]
[1765432934851,0.05006397,130.9,130.89,3.39]
[1765432942250,3.23006397,130.9,130.88,3.43]
[1765432945847,0.05006397,130.9,130.88,3.43]
[1765432951860,0.05006397,130.9,130.89,3.43]
[1765432955852,25.32,130.94,130.9,6.8746]
[1765432956057,3.32,130.95,130.91,3.34]
[1765432956968,0.05270844,130.94,130.92,3.39565596]
[1765432957857,0.05270844,130.94,130.92,10.26915596]
[1765432958169,0.05270844,130.94,130.93,3.34]
[1765432960168,3.32,130.98,130.95,3.34]
[1765432960769,3.32,130.99,130.96,3.34]
[1765432961162,3.37050152,130.99,130.96,3.38885669]
[1765432963770,3.37050152,130.99,130.97,3.34]
[1765432963771,0.05050152,130.99,130.97,3.34]
[1765432964367,0.05050152,130.99,130.97,10.211]
[1765432964576,0.05050152,130.99,130.98,3.34]
[1765432980094,3.32,131.03,130.99,3.34]
[1765432981089,0.05738803,131.02,131.0,0.0583799]
[1765432981294,3.37738803,131.02,131.0,3.3983799]
[1765432981998,3.37738803,131.02,131.0,0.0583799]
[1765432982799,0.05738803,131.02,131.01,3.34]
[1765432983288,3.37738803,131.02,131.01,3.34]
[1765432985395,3.37738803,131.02,131.0,3.3483799]
[1765432986599,3.37738803,131.02,131.0,0.0583799]
[1765432986893,3.36,131.01,130.96,3.29]
[1765432987298,3.36,131.01,130.96,10.1616]
[1765432987491,3.36,131.01,130.97,3.29]
[1765432988198,0.04813687,131.0,130.98,3.34135278]
[1765432990296,3.40813687,131.0,130.98,3.34135278]
[1765432990499,0.04813687,131.0,130.98,3.34135278]
[1765432991497,3.40813687,131.0,130.98,3.34135278]
[1765432994999,0.04813687,131.0,130.99,3.42]
[1765433009308,3.21813687,131.0,130.99,3.42]
[1765433009506,3.21813687,131.0,130.98,68.35135278]
[1765433012606,3.17,130.98,130.93,68.3]
[1765433012807,3.17,130.96,130.93,3.42]
[1765433013000,9.41632949,130.97,130.93,3.42]
[1765433013001,9.00317015,130.95,130.93,3.42]
[1765433013204,3.17,130.95,130.93,3.42]
[1765433013605,3.2280123,130.95,130.93,3.46931543]
[1765433016906,0.0580123,130.95,130.93,3.46931543]
[1765433017909,3.4680123,130.95,130.93,10.34231543]
[1765433018109,3.4680123,130.95,130.93,0.04931543]
[1765433020916,0.0580123,130.95,130.93,3.19931543]
[1765433021917,0.0580123,130.95,130.94,3.15]
[1765433039027,3.41,130.99,130.96,3.15]
[1765433039931,3.45939374,130.99,130.97,6.8711]
[1765433041034,3.45939374,130.99,130.97,10.0211]
[1765433044432,3.45939374,130.99,130.98,3.16]
[1765433044728,3.45939374,130.99,130.97,10.0311]
[1765433046130,3.45939374,130.99,130.97,3.16]
[1765433046428,3.45939374,130.99,130.96,0.05026007]
[1765433046429,3.26,130.98,130.96,0.05026007]
[1765433046633,5.55678481,130.97,130.96,0.05026007]
[1765433051040,5.60617855,130.99,130.96,3.21026007]
[1765433051240,3.35,130.98,130.96,3.21026007]
[1765433051938,3.35,130.98,130.96,3.27026007]
[1765433053128,3.39939374,130.99,130.96,3.27026007]
[1765433053639,3.39939374,130.99,130.96,10.14186007]
[1765433053835,3.39939374,130.99,130.97,3.22]
[1765433054832,3.39939374,130.99,130.96,10.14186007]
[1765433056342,3.39939374,130.99,130.97,3.22]
[1765433056839,0.04939374,130.99,130.97,3.22]
[1765433057441,3.39939374,130.99,130.97,3.22]
[1765433061943,0.04939374,130.99,130.97,3.22]
[1765433062647,3.39939374,130.99,130.97,3.22]
[1765433064441,3.39939374,130.99,130.96,3.27026007]
[1765433064943,2.29678481,130.98,130.96,3.27026007]
[1765433065136,3.35,130.97,130.96,0.05026007]
[1765433066648,3.35,130.97,130.96,3.27026007]
[1765433066850,3.35,130.98,130.96,3.27026007]
[1765433067051,0.04939374,130.99,130.96,3.27026007]
[1765433067246,0.04939374,130.99,130.96,10.14186007]
[1765433067550,0.04939374,130.99,130.97,3.22]
[1765433067751,3.39939374,130.99,130.97,3.22]
[1765433068449,0.04939374,130.99,130.97,3.22]
[1765433068654,0.04939374,130.99,130.98,3.22]
[1765433091981,0.04939374,130.99,130.96,174.13844488]
[1765433091982,3.27939374,130.99,130.96,0.05026007]
[1765433092175,3.23,130.97,130.96,0.05026007]
[1765433093879,0.04939374,130.99,130.96,175.13146007]
[1765433094087,3.23,131.03,130.98,3.31]
[1765433094678,3.23,131.03,131.0,3.31]
[1765433094984,3.28583091,131.03,131.0,3.36570699]
[1765433095692,0.05583091,131.03,131.01,3.31]
[1765433097280,0.05583091,131.03,131.02,3.31]
[1765433098382,0.05583091,131.03,131.02,5.60678481]
[1765433100291,0.05583091,131.03,131.02,2.29678481]
[1765433100494,0.05583091,131.03,131.02,5.60678481]
[1765433100694,0.05583091,131.03,131.02,3.31]
[1765433102596,3.28583091,131.03,131.01,3.31]
[1765433102894,0.05583091,131.03,131.01,3.31]
[1765433104001,9.6,131.05,131.03,3.31]
[1765433104293,9.6,131.05,131.04,6.89590783]
[1765433107197,3.70994537,131.05,131.04,71.77590783]
[1765433107393,25.37,131.1,131.06,1.21]
[1765433107394,3.37,131.1,131.06,1.21]
[1765433108393,0.05224107,131.09,131.07,1.2676676]
[1765433111999,0.05224107,131.09,131.07,8.1334676]
[1765433112197,0.05224107,131.09,131.08,1.21]
[1765433114091,0.05224107,131.09,131.08,66.07]